fUSD/lending_fUSD_20240414
["ID","MTS","AMOUNT","RATE_DAILY","PERIOD"]
[322588959,1713090643858,-10221.66876629,0.00036453,2]
[322588961,1713090643870,-26864.22626519,0.00036453,2]
[322588963,1713090643882,-183.32688044,0.00036453,7]
[322588965,1713090643891,-1120.64515478,0.00036453,10]
[322588967,1713090643900,-14823.78316089,0.00036453,2]
[322588969,1713090643909,-21400.36163323,0.00036453,2]
[322588971,1713090643919,-2026.93484754,0.00036453,10]
[322588973,1713090643928,-3281.0310742,0.00036453,7]
[322588975,1713090643938,-527.68943673,0.00036453,5]
[322588977,1713090643949,-741.93971446,0.00036453,10]
[322588979,1713090643959,-263.06053332,0.00036453,10]
[322588981,1713090643968,-2925.47049298,0.00036453,2]
[322588983,1713090643978,-275.0,0.00036453,14]
[322588985,1713090643988,-9057.42657939,0.00036453,2]
[322588987,1713090643997,-34961.63113947,0.00036453,2]
[322588989,1713090644007,-503159.988231,0.00036453,2]
[322588991,1713090644018,-211.15041514,0.00036453,7]
[322588993,1713090644029,-18987.03563501,0.00036453,3]
[322588995,1713090644040,-642.13518236,0.00036453,14]
[322588997,1713090644049,-3843.07740348,0.00036453,3]
[322588999,1713090644058,-1760.75450467,0.00036453,2]
[322589001,1713090644068,-6528.52001372,0.00036453,4]
[322589003,1713090644077,-1521.64255758,0.00036453,20]
[322589005,1713090644087,-208.28362471,0.00036453,7]
[322589007,1713090644097,-29653.85151388,0.00036453,4]
[322589010,1713090644106,-205.26272692,0.00036453,5]
[322589012,1713090644116,-11534.2087434,0.00036453,2]
[322589013,1713090644126,-218.8551412,0.00036453,15]
[322589015,1713090644135,-13000.0,0.00036453,2]
[322589018,1713090644145,-13681.92164015,0.00036453,2]
[322589019,1713090644155,-23100.66533494,0.00036453,2]
[322589022,1713090644165,-5001.52147279,0.00036453,2]
[322589024,1713090644174,-150.0,0.00036453,2]
[322589025,1713090644184,-150.0,0.00036453,2]
[322589028,1713090644194,-200.0,0.00036453,2]
[322589030,1713090644203,-250.0,0.00036453,2]
[322589032,1713090644212,-250.0,0.00036453,7]
[322589034,1713090644222,-250.0,0.00036453,8]
[322589036,1713090644234,-250.0,0.00036453,9]
[322589038,1713090644243,-250.0,0.00036453,10]
[322589040,1713090644253,-250.0,0.00036453,11]
[322589042,1713090644262,-250.0,0.00036453,12]
[322589043,1713090644272,-250.0,0.00036453,13]
[322589046,1713090644282,-250.0,0.00036453,14]
[322589048,1713090644293,-155.63354506,0.00036453,17]
[322589050,1713090644302,-200.0,0.00036454,7]
[322589052,1713090644312,-200.0,0.00036455,7]
[322589054,1713090644322,-152.38,0.0003667,2]
[322589056,1713090644331,-151.0,0.00036845,4]
[322589058,1713090644341,-50000.0,0.00037,7]
[322589060,1713090644350,-50000.0,0.00037,17]
[322589062,1713090644361,-246096.42926149,0.00037,4]
[322589064,1713090644371,-586.68562945,0.00037,3]
[322589066,1713090644381,-900.0,0.00037,3]
[322589068,1713090644391,-1007.26,0.00037055,2]
[322589070,1713090644402,-728.0,0.00037233,7]
[322589072,1713090644412,-200.0,0.0003741,10]
[322589074,1713090644423,-1000.0,0.0003741,15]
[322589076,1713090644432,-200.0,0.0003741,10]
[322589078,1713090644442,-151.0,0.00037597,2]
[322589080,1713090644452,-686.88,0.00037811,2]
[322589082,1713090644462,-1007.26,0.0003791,2]
[322589084,1713090644472,-152.38,0.00037935,2]
[322589086,1713090644482,-50000.0,0.00038,18]
[322589088,1713090644492,-50000.0,0.00038,8]
[322589090,1713090644503,-2615.56,0.00038027,15]
[322589092,1713090644512,-154.76,0.00038356,2]
[322589094,1713090644523,-1427.4,0.000385,3]
[322589096,1713090644534,-1427.4,0.000385,3]
[322589098,1713090644544,-1427.4,0.000385,3]
[322589100,1713090644555,-1427.4,0.000385,3]
[322589102,1713090644565,-1427.4,0.000385,3]
[322589104,1713090644574,-1427.4,0.000385,3]
[322589106,1713090644585,-1427.4,0.000385,3]
[322589108,1713090644594,-1427.4,0.000385,3]
[322589110,1713090644604,-1427.4,0.000385,3]
[322589112,1713090644614,-1427.4,0.000385,3]
[322589114,1713090644624,-1427.4,0.000385,3]
[322589116,1713090644634,-1427.4,0.000385,3]
[322589118,1713090644644,-1427.4,0.000385,3]
[322589121,1713090644655,-1427.4,0.000385,3]
[322589123,1713090644667,-1427.4,0.000385,3]
[322589125,1713090644678,-1427.4,0.000385,3]
[322589126,1713090644689,-1427.4,0.000385,3]
[322589129,1713090644700,-153.32,0.000385,3]
[322589130,1713090644710,-153.32,0.000385,3]
[322589133,1713090644721,-153.32,0.000385,3]
[322589135,1713090644732,-153.32,0.000385,3]
[322589137,1713090644743,-728.0,0.00038603,7]
[322589138,1713090644754,-1007.26,0.00038765,2]
[322589140,1713090644765,-238.57,0.00038933,2]
[322589142,1713090644776,-50000.0,0.00039,19]
[322589144,1713090644789,-50000.0,0.00039,9]
[322589147,1713090644800,-950.0,0.00039,3]
[322589148,1713090644810,-152.38,0.00039199,2]
[322589150,1713090644820,-79985.31837341,0.000395,30]
[322589153,1713090644833,-155.81,0.00039574,2]
[322589155,1713090644843,-1986.622052,0.0003962,2]
[322589156,1713090644853,-908.17,0.00039706,2]
[322589158,1713090644863,-1979.33517126,0.000399,3]
[322589161,1713090644875,-1766.37387071,0.000399,48]
[322589163,1713090644887,-1766.37387069,0.000399,48]
[322589165,1713090644898,-1766.37387069,0.000399,48]
[322589167,1713090644909,-1766.37387069,0.000399,48]
[322589169,1713090644919,-1766.37387069,0.000399,48]
[322589171,1713090644930,-1766.37387069,0.000399,48]
[322589173,1713090644940,-1766.37387069,0.000399,48]
[322589175,1713090644951,-160.0,0.00039957,3]
[322589177,1713090644962,-160.0,0.00039966,3]
[322589179,1713090644972,-728.0,0.00039973,7]
[322589181,1713090644982,-160.0,0.00039974,3]
[322589183,1713090644992,-160.0,0.00039983,3]
[322589185,1713090645003,-50000.0,0.0004,30]
[322589187,1713090645013,-50000.0,0.0004,40]
[322589188,1713090645023,-2853.72301667,0.0004,5]
[322589191,1713090645037,-17622.7116035,0.0004,4]
[322589193,1713090645048,-27133.92829464,0.0004,4]
[322589195,1713090645058,-548.35400054,0.0004,4]
[322589196,1713090645068,-959.45180685,0.0004,30]
[322589199,1713090645078,-193.1831861,0.0004,2]
[322589201,1713090645088,-1399.8046501,0.0004,30]
[322589203,1713090645097,-365.47266567,0.0004,30]
[322589204,1713090645108,-402.81108403,0.0004,30]
[322589206,1713090645119,-2002.10180942,0.0004,2]
[322589209,1713090645130,-2458.88819269,0.0004,2]
[322589211,1713090645140,-749.76878721,0.0004,30]
[322589213,1713090645150,-369.74406119,0.0004,2]
[322589215,1713090645161,-529.95923217,0.0004,120]
[322589217,1713090645172,-3232.27565572,0.0004,30]
[322589219,1713090645183,-305.24401655,0.0004,4]
[322589221,1713090645193,-6000.0,0.0004,2]
[322589222,1713090645204,-500.0,0.0004,30]
[322589225,1713090645215,-150.0,0.0004,30]
[322589226,1713090645226,-686.88,0.00040075,2]
[322589229,1713090645236,-150.0,0.00040225,2]
[322589231,1713090645246,-152.38,0.00040464,2]
[322589233,1713090645256,-150.0,0.00040565,2]
[322589235,1713090645266,-150.0,0.00040625,2]
[322589237,1713090645281,-150.0,0.00040669,2]
[322589239,1713090645291,-150.0,0.00040708,2]
[322589240,1713090645300,-150.0,0.00040728,2]
[322589242,1713090645310,-2615.56,0.00040767,15]
[322589244,1713090645320,-151.95,0.00040802,2]
[322589246,1713090645329,-150.0,0.00040802,2]
[322589249,1713090645339,-150.0,0.00040802,2]
[322589251,1713090645349,-207.66822993,0.00040832,2]
[322589253,1713090645359,-150.0,0.00040906,2]
[322589255,1713090645368,-150.0,0.00040957,2]
[322589257,1713090645378,-150.0,0.00040981,2]
[322589259,1713090645388,-50000.0,0.00041,41]
[322589261,1713090645397,-50000.0,0.00041,31]
[322589263,1713090645407,-348.22,0.00041,7]
[322589265,1713090645417,-434.46,0.00041,7]
[322589267,1713090645426,-685.39764,0.00041,20]
[322589269,1713090645436,-1000.0,0.00041,3]
[322589271,1713090645446,-165.49997866,0.00041026,30]
[322589273,1713090645456,-150.0,0.00041081,2]
[322589275,1713090645465,-150.0,0.00041088,2]
[322589277,1713090645474,-1000.0,0.00041095,2]
[322589279,1713090645483,-157.0,0.00041096,2]
[322589281,1713090645492,-154.76,0.00041096,2]
[322589283,1713090645502,-2000.0,0.000411,2]
[322589296,1713090645602,-1761.79484225,0.0004116,5]
[322589298,1713090645613,-150.0,0.00041175,2]
[322589300,1713090645624,-134863.90846151,0.00041184,5]
[322589302,1713090645633,-150.0,0.00041195,2]
[322589304,1713090645642,-348.344532,0.00041232,30]
[322589306,1713090645652,-100000.000001,0.00041248,5]
[322589308,1713090645661,-154.78946012,0.00041252,30]
[322589310,1713090645670,-150.0,0.00041261,2]
[322589312,1713090645679,-150.0,0.00041261,2]
[322589315,1713090645688,-279.00414478,0.00041271,30]
[322589317,1713090645697,-728.0,0.00041343,7]
[322589319,1713090645706,-150.0,0.00041349,2]
[322589321,1713090645716,-150.0,0.00041349,2]
[322589322,1713090645725,-150.0,0.00041349,2]
[322589324,1713090645735,-150.0,0.00041349,2]
[322589326,1713090645744,-150.0,0.00041349,2]
[322589328,1713090645754,-150.0,0.00041349,2]
[322589329,1713090645763,-150.0,0.00041383,2]
[322589330,1713090645772,-152.61441782,0.0004142,30]
[322589331,1713090645784,-348.344532,0.00041436,30]
[322589332,1713090645794,-150.0,0.00041469,2]
[322589333,1713090645804,-323.76366204,0.00041493,30]
[322589336,1713090645814,-150.0,0.0004152,2]
[322589339,1713090645823,-150.0,0.0004152,2]
[322589342,1713090645833,-157.25544538,0.00041528,30]
[322589345,1713090645842,-150.0,0.00041548,2]
[322589348,1713090645852,-150.0,0.00041559,2]
[322589350,1713090645861,-153.57672703,0.00041571,30]
[322589353,1713090645871,-150.0,0.00041575,2]
[322589356,1713090645881,-220.28640523,0.0004158,3]
[322589359,1713090645891,-150.0,0.00041584,2]
[322589362,1713090645900,-150.0,0.00041586,2]
[322589365,1713090645909,-279.00414478,0.00041612,30]
[322589368,1713090645920,-150.0,0.00041616,2]
[322589371,1713090645929,-157.25544538,0.00041648,30]
[322589374,1713090645938,-152.38,0.00041728,2]
[322589377,1713090645947,-150.0,0.00041735,2]
[322589380,1713090645958,-150.0,0.00041737,2]
[322589383,1713090645967,-150.0,0.00041745,2]
[322589386,1713090645976,-279.00414478,0.00041754,30]
[322589389,1713090645985,-151.0,0.00041774,2]
[322589392,1713090645994,-250.49088,0.00041774,2]
[322589395,1713090646003,-1000.0,0.0004179,2]
[322589398,1713090646013,-1000.0,0.0004179,2]
[322589401,1713090646022,-1000.0,0.0004179,2]
[322589404,1713090646033,-1000.0,0.0004179,2]
[322589407,1713090646042,-1000.0,0.0004179,2]
[322589410,1713090646051,-1000.0,0.0004179,2]
[322589413,1713090646060,-1000.0,0.0004179,2]
[322589416,1713090646068,-1000.0,0.0004179,2]
[322589419,1713090646077,-1000.0,0.0004179,2]
[322589421,1713090646086,-1000.0,0.0004179,2]
[322589423,1713090646096,-1000.0,0.0004179,2]
[322589425,1713090646105,-1000.0,0.0004179,2]
[322589427,1713090646114,-1000.0,0.0004179,2]
[322589429,1713090646123,-1000.0,0.0004179,2]
[322589431,1713090646132,-1000.0,0.0004179,2]
[322589433,1713090646141,-1000.0,0.0004179,2]
[322589435,1713090646150,-1000.0,0.0004179,2]
[322589437,1713090646160,-1000.0,0.0004179,2]
[322589439,1713090646169,-1000.0,0.0004179,2]
[322589441,1713090646180,-1000.0,0.0004179,2]
[322589443,1713090646189,-1000.0,0.0004179,2]
[322589445,1713090646198,-1000.0,0.0004179,2]
[322589447,1713090646208,-1000.0,0.0004179,2]
[322589449,1713090646218,-1000.0,0.0004179,2]
[322589451,1713090646228,-589.2752,0.0004179,2]
[322589453,1713090646238,-500.0,0.0004179,2]
[322589455,1713090646248,-500.0,0.0004179,2]
[322589457,1713090646257,-500.0,0.0004179,2]
[322589459,1713090646267,-500.0,0.0004179,2]
[322589461,1713090646277,-499.9999,0.0004179,2]
[322589463,1713090646286,-150.0,0.00041793,2]
[322589465,1713090646297,-150.0,0.00041797,2]
[322589467,1713090646307,-3071.49301093,0.000418,4]
[322589469,1713090646317,-150.0,0.00041802,2]
[322589471,1713090646326,-153.57672703,0.00041813,30]
[322589473,1713090646336,-150.0,0.00041813,2]
[322589475,1713090646345,-150.0,0.00041828,2]
[322589477,1713090646354,-150.0,0.00041859,2]
[322589479,1713090646364,-1728.26,0.00041871,2]
[322589481,1713090646373,-412.35,0.00041871,2]
[322589483,1713090646383,-1816.34,0.00041871,2]
[322589485,1713090646393,-1816.34,0.00041871,2]
[322589487,1713090646403,-412.35,0.00041871,2]
[322589489,1713090646414,-412.35,0.00041871,2]
[322589491,1713090646424,-412.35,0.00041871,2]
[322589493,1713090646434,-412.35,0.00041871,2]
[322589495,1713090646444,-412.35,0.00041871,2]
[322589497,1713090646453,-412.35,0.00041871,2]
[322589499,1713090646464,-323.76366204,0.00041878,30]
[322589501,1713090646474,-155.72346712,0.00041884,30]
[322589503,1713090646484,-157.25544538,0.00041885,30]
[322589505,1713090646493,-150.0,0.00041898,2]
[322589507,1713090646503,-159.98891826,0.00041908,30]
[322589509,1713090646514,-150.0,0.0004193,2]
[322589511,1713090646527,-150.0,0.00041983,2]
[322589513,1713090646537,-165.49997866,0.00041993,30]
[322589515,1713090646546,-5835.31046315,0.00041999,2]
[322589517,1713090646555,-150.01,0.00041999,2]
[322589519,1713090646564,-18635.6462009,0.00041999,2]
[322589521,1713090646575,-433.0110102,0.00041999,2]
[322589523,1713090646585,-94610.6582216,0.00041999,2]
[322589525,1713090646594,-50000.0,0.00042,32]
[322589527,1713090646604,-50000.0,0.00042,42]
[322589529,1713090646615,-680.35369208,0.00042,15]
[322589531,1713090646625,-3356.81383592,0.00042,4]
[322589533,1713090646635,-507.79199758,0.00042,120]
[322589535,1713090646645,-1833.32041196,0.00042,10]
[322589537,1713090646654,-964.0,0.00042,28]
[322589539,1713090646664,-167.17692992,0.00042,2]
[322589541,1713090646674,-800.28772787,0.00042,4]
[322589543,1713090646684,-1449.3529032,0.00042,4]
[322589545,1713090646694,-482.0,0.00042,28]
[322589547,1713090646704,-150.0,0.00042,49]
[322589549,1713090646713,-1427.4,0.00042,4]
[322589551,1713090646722,-1427.4,0.00042,4]
[322589553,1713090646731,-1427.4,0.00042,4]
[322589555,1713090646741,-1427.4,0.00042,4]
[322589557,1713090646752,-1427.4,0.00042,4]
[322589559,1713090646761,-1427.4,0.00042,4]
[322589561,1713090646771,-1427.4,0.00042,4]
[322589563,1713090646783,-1427.4,0.00042,4]
[322589566,1713090646793,-1427.4,0.00042,4]
[322589568,1713090646803,-1427.4,0.00042,4]
[322589569,1713090646813,-1427.4,0.00042,4]
[322589571,1713090646823,-1427.4,0.00042,4]
[322589574,1713090646833,-1427.4,0.00042,4]
[322589575,1713090646844,-1427.4,0.00042,4]
[322589577,1713090646854,-1427.4,0.00042,4]
[322589580,1713090646863,-1427.4,0.00042,4]
[322589582,1713090646873,-1427.4,0.00042,4]
[322589584,1713090646885,-1427.4,0.00042,4]
[322589585,1713090646894,-1427.4,0.00042,4]
[322589587,1713090646903,-1427.4,0.00042,4]
[322589590,1713090646913,-153.32,0.00042,4]
[322589592,1713090646924,-153.32,0.00042,4]
[322589593,1713090646933,-153.32,0.00042,4]
[322589596,1713090646942,-153.32,0.00042,4]
[322589598,1713090646951,-153.32,0.00042,4]
[322589600,1713090646962,-153.32,0.00042,4]
[322589602,1713090646972,-153.32,0.00042,4]
[322589604,1713090646981,-153.32,0.00042,4]
[322589605,1713090646990,-1305.01069045,0.0004201,2]
[322589607,1713090646999,-167.2194752,0.00042041,30]
[322589609,1713090647008,-3186.12862197,0.00042083,2]
[322589611,1713090647018,-1618.07110588,0.00042083,2]
[322589612,1713090647027,-306.35424071,0.00042083,2]
[322589614,1713090647036,-1492.34904237,0.00042083,2]
[322589616,1713090647045,-521.03,0.00042145,2]
[322589618,1713090647055,-166.66,0.00042145,2]
[322589620,1713090647064,-794.43,0.00042145,2]
[322589621,1713090647073,-300.0,0.00042145,2]
[322589623,1713090647082,-164.47174624,0.00042159,30]
[322589625,1713090647091,-157.041418,0.00042198,39]
[322589627,1713090647100,-153.31823437,0.00042222,30]
[322589629,1713090647109,-157.25544538,0.00042246,30]
[322589630,1713090647118,-166.784314,0.00042286,30]
[322589632,1713090647128,-348.22,0.000423,7]
[322589634,1713090647137,-434.46,0.000423,7]
[322589636,1713090647147,-686.88,0.00042339,2]
[322589638,1713090647155,-166.84086597,0.00042357,30]
[322589639,1713090647165,-203.0,0.0004237,2]
[322589641,1713090647174,-1000.0,0.00042465,2]
[322589643,1713090647183,-153.57672703,0.00042473,30]
[322589645,1713090647193,-302.0,0.00042476,4]
[322589647,1713090647202,-157.041418,0.00042498,40]
[322589648,1713090647211,-150.0,0.00042512,120]
[322589650,1713090647222,-323.76366204,0.00042545,30]
[322589652,1713090647232,-1766.37387069,0.00042584,57]
[322589654,1713090647241,-3186.12862197,0.00042602,2]
[322589656,1713090647251,-1618.07110588,0.00042602,2]
[322589658,1713090647260,-306.35424071,0.00042602,2]
[322589659,1713090647269,-1492.34904237,0.00042602,2]
[322589661,1713090647280,-163.77284282,0.00042629,30]
[322589663,1713090647289,-728.0,0.00042713,7]
[322589665,1713090647299,-153.57672703,0.00042724,30]
[322589666,1713090647308,-159.98891826,0.00042727,30]
[322589668,1713090647317,-150.0,0.00042742,2]
[322589670,1713090647327,-279.00414478,0.00042752,30]
[322589672,1713090647336,-157.041418,0.00042798,41]
[322589674,1713090647348,-155.68972588,0.00042832,30]
[322589675,1713090647358,-154.38291623,0.00042853,30]
[322589677,1713090647369,-323.76366204,0.00042856,30]
[322589679,1713090647380,-165.49997866,0.00042868,30]
[322589681,1713090647390,-963.23175079,0.0004289,10]
[322589683,1713090647401,-279.00414478,0.00042898,30]
[322589684,1713090647410,-159.78997798,0.0004294,30]
[322589686,1713090647421,-154.78946012,0.00042985,30]
[322589688,1713090647431,-152.38,0.00042993,2]
[322589690,1713090647441,-50000.0,0.00043,43]
[322589692,1713090647451,-50000.0,0.00043,33]
[322589694,1713090647460,-5000.0,0.00043,30]
[322589696,1713090647470,-1050.0,0.00043,4]
[322589697,1713090647481,-1050.0,0.00043,3]
[322589699,1713090647490,-175.0,0.00043004,30]
[322589701,1713090647502,-154.38291623,0.00043054,30]
[322589703,1713090647513,-323.76366204,0.00043072,30]
[322589705,1713090647523,-3186.12862197,0.00043122,2]
[322589707,1713090647534,-1618.07110588,0.00043122,2]
[322589709,1713090647545,-306.35424071,0.00043122,2]
[322589710,1713090647554,-1492.34904237,0.00043122,2]
[322589712,1713090647565,-155.68972588,0.00043163,30]
[322589714,1713090647574,-155.72346712,0.00043184,30]
[322589716,1713090647585,-604.0,0.0004319,7]
[322589718,1713090647595,-157.041418,0.00043198,42]
[322589720,1713090647605,-157.25544538,0.00043319,30]
[322589722,1713090647615,-323.76366204,0.00043328,30]
[322589723,1713090647625,-154.78946012,0.00043344,30]
[322589725,1713090647635,-154.38291623,0.00043366,30]
[322589727,1713090647645,-150.0,0.00043368,2]
[322589729,1713090647654,-279.00414478,0.0004339,30]
[322589731,1713090647664,-154.38291623,0.00043414,30]
[322589733,1713090647675,-153.57672703,0.00043483,30]
[322589735,1713090647686,-157.041418,0.00043498,43]
[322589737,1713090647695,-1647.0,0.000435,7]
[322589739,1713090647705,-2615.56,0.00043507,15]
[322589740,1713090647715,-154.78946012,0.00043509,30]
[322589742,1713090647725,-200.0,0.00043572,15]
[322589744,1713090647736,-1000.0,0.00043572,30]
[322589746,1713090647746,-200.0,0.00043572,20]
[322589748,1713090647756,-165.49997866,0.00043583,30]
[322589750,1713090647765,-167.2194752,0.00043623,30]
[322589752,1713090647774,-3186.12862197,0.00043641,2]
[322589753,1713090647785,-1618.07110588,0.00043641,2]
[322589755,1713090647795,-306.35424071,0.00043641,2]
[322589757,1713090647804,-1492.34904237,0.00043641,2]
[322589759,1713090647813,-348.22,0.000437,7]
[322589761,1713090647823,-434.46,0.000437,7]
[322589763,1713090647833,-157.041416,0.00043798,45]
[322589765,1713090647843,-1500.0,0.000438,2]
[322589767,1713090647854,-279.00414478,0.00043811,30]
[322589768,1713090647864,-155.68972588,0.00043823,30]
[322589770,1713090647873,-2798.79967154,0.00043834,4]
[322589772,1713090647888,-1000.0,0.00043835,2]
[322589774,1713090647899,-3714.49,0.00043836,2]
[322589776,1713090647910,-5836.55,0.00043836,2]
[322589778,1713090647922,-203.0,0.0004387,30]
[322589780,1713090647932,-279.00414478,0.0004391,30]
[322589782,1713090647943,-166.99392,0.00043916,4]
[322589784,1713090647954,-170.03737,0.00043963,30]
[322589785,1713090647964,-388.645331,0.00043963,30]
[322589787,1713090647975,-1015.129227,0.00043963,30]
[322589790,1713090647993,-200.0,0.00043963,30]
[322589792,1713090648008,-1554.581326,0.00043963,30]
[322589794,1713090648017,-1387.036605,0.00043963,30]
[322589796,1713090648027,-50000.0,0.00044,44]
[322589797,1713090648036,-50000.0,0.00044,34]
[322589799,1713090648046,-334.95512308,0.00044,30]
[322589801,1713090648055,-1000.0,0.00044,2]
[322589803,1713090648065,-1567.887579,0.00044,44]
[322589805,1713090648074,-155.68972588,0.00044031,30]
[322589807,1713090648084,-162.68783336,0.00044037,30]
[322589809,1713090648094,-154.67053221,0.00044071,30]
[322589811,1713090648103,-728.0,0.00044082,7]
[322589813,1713090648112,-156.3106271,0.00044148,30]
[322589814,1713090648121,-165.49997866,0.00044156,30]
[322589816,1713090648131,-300.0,0.00044157,30]
[322589818,1713090648141,-3186.12862197,0.00044161,2]
[322589820,1713090648150,-1618.07110588,0.00044161,2]
[322589822,1713090648160,-306.35424071,0.00044161,2]
[322589824,1713090648169,-1492.34904237,0.00044161,2]
[322589826,1713090648179,-165.49997866,0.00044185,30]
[322589828,1713090648189,-157.041416,0.00044198,50]
[322589829,1713090648198,-155.72346712,0.00044236,30]
[322589831,1713090648207,-157.25544538,0.00044249,30]
[322589833,1713090648217,-165.49997866,0.00044251,30]
[322589835,1713090648226,-152.38,0.00044257,2]
[322589837,1713090648237,-1208.0,0.00044283,30]
[322589839,1713090648247,-159.98891826,0.0004432,30]
[322589841,1713090648258,-348.344532,0.00044331,30]
[322589843,1713090648267,-155.72346712,0.00044366,30]
[322589844,1713090648278,-432.98296717,0.00044407,30]
[322589846,1713090648287,-157.041416,0.00044498,55]
[322589848,1713090648297,-388.645331,0.00044512,30]
[322589850,1713090648307,-1015.129227,0.00044512,30]
[322589852,1713090648316,-200.0,0.00044512,30]
[322589854,1713090648326,-1554.581326,0.00044512,30]
[322589856,1713090648335,-1387.036605,0.00044512,30]
[322589858,1713090648346,-155.68972588,0.00044515,30]
[322589860,1713090648355,-159.56304092,0.00044535,30]
[322589861,1713090648365,-686.88,0.00044603,2]
[322589863,1713090648374,-150.0,0.00044637,120]
[322589864,1713090648383,-201.58764879,0.00044669,30]
[322589866,1713090648393,-279.00414478,0.00044676,30]
[322589867,1713090648404,-3186.12862197,0.0004468,2]
[322589869,1713090648414,-1618.07110588,0.0004468,2]
[322589870,1713090648423,-306.35424071,0.0004468,2]
[322589871,1713090648433,-1492.34904237,0.0004468,2]
[322589872,1713090648442,-238.57,0.00044701,2]
[322589873,1713090648451,-157.041416,0.00044798,60]
[322589874,1713090648461,-165.49997866,0.000448,30]
[322589875,1713090648471,-279.00414478,0.00044866,30]
[322589876,1713090648481,-348.344532,0.00044868,30]
[322589877,1713090648490,-279.00414478,0.00044905,30]
[322589878,1713090648500,-279.00414478,0.0004492,30]
[322589879,1713090648509,-5000.0,0.00044986,4]
[322589880,1713090648518,-50000.0,0.00045,45]
[322589881,1713090648528,-50000.0,0.00045,35]
[322589882,1713090648538,-464.75999411,0.00045,120]
[322589883,1713090648547,-211.12211932,0.00045,4]
[322589884,1713090648556,-2018.96,0.00045,50]
[322589885,1713090648565,-155.062096,0.00045,30]
[322589886,1713090648577,-699.69555457,0.00045,60]
[322589887,1713090648586,-386.70352426,0.00045,60]
[322589888,1713090648596,-2585.45816723,0.00045,2]
[322589889,1713090648605,-850.0,0.00045,90]
[322589890,1713090648615,-1100.0,0.00045,3]
[322589892,1713090648625,-150.0,0.00045,120]
[322589893,1713090648634,-388.645331,0.00045062,30]
[322589895,1713090648644,-1015.129227,0.00045062,30]
[322589897,1713090648653,-200.0,0.00045062,30]
[322589899,1713090648662,-1554.581326,0.00045062,30]
[322589902,1713090648672,-1387.036605,0.00045062,30]
[322589904,1713090648682,-165.8815706,0.00045072,30]
[322589906,1713090648691,-348.22,0.000451,7]
[322589908,1713090648702,-434.46,0.000451,7]
[322589910,1713090648712,-279.00414478,0.00045192,30]
[322589912,1713090648721,-157.041416,0.00045198,65]
[322589914,1713090648730,-3186.12862197,0.000452,2]
[322589916,1713090648739,-1618.07110588,0.000452,2]
[322589918,1713090648750,-306.35424071,0.000452,2]
[322589920,1713090648759,-1492.34904237,0.000452,2]
[322589922,1713090648768,-1000.0,0.00045205,2]
[322589924,1713090648778,-323.76366204,0.00045227,30]
[322589926,1713090648788,-156.88723511,0.00045285,30]
[322589928,1713090648797,-203.0,0.0004537,30]
[322589930,1713090648807,-877.0,0.00045452,30]
[322589932,1713090648816,-157.041416,0.00045498,70]
[322589934,1713090648826,-157.25544538,0.000455,30]
[322589936,1713090648835,-152.38,0.00045522,2]
[322589938,1713090648845,-1427.4,0.000456,5]
[322589940,1713090648854,-1427.4,0.000456,5]
[322589942,1713090648863,-1427.4,0.000456,5]
[322589944,1713090648874,-1427.4,0.000456,5]
[322589947,1713090648886,-1427.4,0.000456,5]
[322589949,1713090648895,-1427.4,0.000456,5]
[322589951,1713090648904,-1427.4,0.000456,5]